{"text_format":"1","workbook":"xlsx","n_sheets":5,"sheets":["Deckblatt","List","Translations","Refinement der Genotypisierung","Validierung"],"not_rendered":{"charts":0,"images":2,"macros":1,"external_links":2,"defined_names":113,"comments":0,"pivot_tables":0},"unopened":[],"bounds":{"document_bytes":16777216,"sheet_cells":100000,"rows_first":2000,"rows_last":500,"rows_between":2000,"halvings":0,"cell_chars":16384,"cell_head_chars":4096},"cells_cut":0,"cells_raw":0,"read":"whole","date_system":"1900"}

{"sheet":"Deckblatt","index":0,"n_rows":14,"n_cols":4,"rows_kept":14,"cut":false,"hidden":false,"merged":[[0,1,0,4],[16,1,16,4]]}
[null,"Meldung von Tötungen (§ 4 Abs. 3 TierSchG und weitere Tötungen)"]
[]
[]
[null,null,"EU-Mitgliedsstaat:","Germany"]
[]
[null,null,"Vorname:"]
[]
[null,null,"Name:"]
[]
[null,null,"Email:"]
[]
[null,null,"Einrichtung / Betrieb:"]
[]
[null,null,"Meldejahr:",2023]

{"sheet":"List","index":1,"n_rows":3,"n_cols":20,"rows_kept":3,"cut":false,"hidden":false,"merged":[[0,0,1,1],[1,14,1,16],[0,4,0,10],[0,11,1,12],[1,8,1,10],[1,4,1,7]]}
[null,null,null,null,"zur Aktivierung des Formulars die Makros aktivieren (i.d.R. gelbe Leiste \"Inhalt aktivieren\")",null,null,null,null,null,null,"Die Angabe ist freiwillig. Invasive Techniken (außer Markierung) sind in Tabelle 1 zu melden und können hier nicht ausgewählt werden.",null,null,"Version 12/23"]
[null,null,null,null,"bei manueller Eingabe von Daten die Zeilen bitte nacheinander von links (Spalte A) nach rechts ausfüllen",null,null,null,"maximal eine Kategorie wählen; oder dreimal \"Nein\" (z.B. Tiere aus WT-Linien)",null,null,null,null,null,"nur wenn Tötung nach § 4 Abs. 3 TierSchG (Spalte K = Ja)"]
[{"$f":"LabelRecordType","v":"Tötung von Tieren, die …"},{"$f":"LabelId1","v":"Bezeichnung (z.B. Aktenzeichen)"},{"$f":"LabelId2","v":"BfR-ID"},{"$f":"LabelId3","v":"BfR-Kommentar"},{"$f":"LabelAnimalSpecies","v":"Tierart"},{"$f":"LabelSpecifyOtherAnimalSpecies","v":"bei Anderen"},{"$f":"LabelNumberOfAnimals","v":"Anzahl"},{"$f":"LabelGeneticStatus","v":"Genetischer Status"},{"$f":"LabelCreationOfNewGL","v":"Aus der Schaffung einer neuen GV Linie, nicht gem. § 4 Abs. 3 TierSchG getötet"},{"$f":"LabelMaintenance","v":"Aus dem Erhalt einer etablierten GV Linie, nicht gem. § 4 Abs. 3 TierSchG getötet"},{"$f":"LabelCollectionOfOrgans","v":"Tötung nach § 4 Abs. 3 TierSchG (Tötung für Organe und Gewebe)"},{"$f":"LabelMethodOfTissueSampling","v":"Methode der Genotypisierung"},{"$f":"LabelMethodOfTissueSamplingSpecifyOther","v":"bei Anderen"},{"$f":"LabelComments","v":"bitte freilassen"},{"$f":"LabelField_1","v":"Wiederverwendung (erneute Verwendung) nach abgeschlossenem Tierversuch (§ 18 TierSchVersV)"},{"$f":"LabelField_2","v":"wissenschaftlicher Zweck der Organe/Gewebe"},{"$f":"LabelField_3","v":"bei Anderen"},{"$f":"LabelField_4","v":"Kommentar"},{"$f":"LabelField_5","v":"Kommentar"},{"$f":"LabelField_6","v":"Field 6"}]

{"sheet":"Translations","index":2,"n_rows":89,"n_cols":63,"rows_kept":89,"cut":false,"hidden":true,"merged":[[2,42,2,44],[2,46,2,47]]}
["Typ der Meldung","Code","Tierart",null,"Code + Type",null,null,null,null,null,null,"Länder",null,null,null,"J/N",null,null,null,"Genetischer Status",null,null,null,null,null,null,"Meldezeitraum",null,null,"Methode der Genotypisierung",null,null,null,null,null,null,"Id1 Dropdown values","Id2 Dropdown values","Id3 Dropdown values","Other Species Dropdown values","Other Methods of tissue sampling Dropdown values",null,"Table Headers"]
["[IR1] Gewebeproben (nicht-invasive Genotypisierung oder Überschussgewebe)","A1","Mäuse (Mus musculus)",null,{"$f":"CONCATENATE(\"[\",B2,\"] \",C2)","v":"[A1] Mäuse (Mus musculus)"},null,null,null,null,null,null,"Austria",null,null,null,"[N] Nein",null,null,null,"[GS1] Genetisch nicht verändert",null,null,null,null,null,null,2021,null,null,"[ST1] Gewebeprobe im Rahmen der Markierung mittels Ohrlochmarkierung",null,null,null,null,null,null,null,null,null,null,null,null,"Tötung von Tieren, die …","Bezeichnung (z.B. Aktenzeichen)","BfR-ID","BfR-Kommentar","Tierart","bei Anderen","Anzahl","Genetischer Status","Aus der Schaffung einer neuen GV Linie, nicht gem. § 4 Abs. 3 TierSchG getötet","Aus dem Erhalt einer etablierten GV Linie, nicht gem. § 4 Abs. 3 TierSchG getötet","Tötung nach § 4 Abs. 3 TierSchG (Tötung für Organe und Gewebe)","Methode der Genotypisierung","bei Anderen","bitte freilassen","Wiederverwendung (erneute Verwendung) nach abgeschlossenem Tierversuch (§ 18 TierSchVersV)","wissenschaftlicher Zweck der Organe/Gewebe","bei Anderen","Kommentar","Kommentar","Field 6","Informationen zu Verbesserungen (Refinement) der Methoden zur Genotypsierung, insbesondere bei Gewebeproben"]
["[IR2] speziell für wissenschaftliche Verwendungen gezüchtet wurden, aber nie im Tierversuch verwendet wurden (keine Verwendung nach § 7 Abs. 2 TierSchG)","A2","Ratten (Rattus norvegicus)",null,"[A2] Ratten (Rattus norvegicus)",null,null,null,null,null,null,"Belgium",null,null,null,"[Y] Ja",null,null,null,"[GS2] Genetisch verändert und kein pathologischer Phänotyp aufgetreten",null,null,null,null,null,null,2022,null,null,"[NG1] Nicht-invasive Genotypisierung: Haarprobe",null,null,null,null,null,null,null,null,null,null,null,null,"Specific userform1 translations"]
["[IR0] entweder nicht speziell für wissenschaftliche Verwendungen gezüchtet wurden, oder bereits im Tierversuch verwendet wurden (vorherige Verwendung nach § 7 Abs. 2 TierSchG ist möglich)","A3","Meerschweinchen (Cavia porcellus)",null,"[A3] Meerschweinchen (Cavia porcellus)",null,null,null,null,null,null,"Bulgaria",null,null,null,null,null,null,null,null,null,null,null,null,null,null,2023,null,null,"[NG2] Nicht-invasive Genotypisierung: Beobachtung unter besonderem Licht",null,null,null,null,null,null,null,null,null,null,null,"Previous","vorherige Zeile"]
[null,"A4","Goldhamster (Mesocricetus auratus)",null,"[A4] Goldhamster (Mesocricetus auratus)",null,null,null,null,null,null,"Croatia",null,null,null,null,null,null,null,null,null,null,null,null,null,null,2024,null,null,"[NG3] Nicht-invasive Genotypisierung: Post Mortem",null,null,null,null,null,null,null,null,null,null,null,"Current Row","Zeile"]
[null,"A5","Chinesischer Grauhamster (Cricetulus griseus)",null,"[A5] Chinesischer Grauhamster (Cricetulus griseus)",null,null,null,null,null,null,"Cyprus",null,null,null,null,null,null,null,null,null,null,null,null,null,null,2025,null,null,"[NG4] Nicht-invasive Genotypisierung: Andere",null,null,null,null,null,null,null,null,null,null,null,"Go!","Laden"]
[null,"A6","Mongolische Rennmäuse (Meriones unguiculatus)",null,"[A6] Mongolische Rennmäuse (Meriones unguiculatus)",null,null,null,null,null,null,"Czech Republic",null,null,null,null,null,null,null,null,null,null,null,null,null,null,2026,null,null,null,null,null,null,null,null,null,null,null,null,null,null,"Next","Weiter"]
[null,"A7","Andere Nager (andere Rodentia)",null,"[A7] Andere Nager (andere Rodentia)",null,null,null,null,null,null,"Denmark",null,null,null,null,null,null,null,null,null,null,null,null,null,null,2027,null,null,null,null,null,null,null,null,null,null,null,null,null,null,"Save","Speichern"]
[null,"A8","Kaninchen (Oryctolagus cuniculus)",null,"[A8] Kaninchen (Oryctolagus cuniculus)",null,null,null,null,null,null,"Estonia",null,null,null,null,null,null,null,null,null,null,null,null,null,null,2028,null,null,null,null,null,null,null,null,null,null,null,null,null,null,"Save & Duplicate","Speichern & Duplizieren"]
[null,"A9","Katzen (Felis catus)",null,"[A9] Katzen (Felis catus)",null,null,null,null,null,null,"Finland",null,null,null,null,null,null,null,null,null,null,null,null,null,null,2029,null,null,null,null,null,null,null,null,null,null,null,null,null,null,"Cancel","Schließen"]
[null,"A10","Hunde (Canis familiaris)",null,"[A10] Hunde (Canis familiaris)",null,null,null,null,null,null,"France",null,null,null,null,null,null,null,null,null,null,null,null,null,null,2030,null,null,null,null,null,null,null,null,null,null,null,null,null,null,"Row Content","Inhalt der Zeile"]
[null,"A11","Frettchen (Mustela putorius furo)",null,"[A11] Frettchen (Mustela putorius furo)",null,null,null,null,null,null,"Germany",null,null,null,null,null,null,null,null,null,null,null,null,null,null,2031,null,null,null,null,null,null,null,null,null,null,null,null,null,null,"Animal Use Details Form","Formular zur Eingabe von Versuchstieren"]
[null,"A12","Andere Fleischfresser (andere Carnivora)",null,"[A12] Andere Fleischfresser (andere Carnivora)",null,null,null,null,null,null,"Greece",null,null,null,null,null,null,null,null,null,null,null,null,null,null,2032]
[null,"A13","Pferde, Esel und Kreuzungen (Equidae)",null,"[A13] Pferde, Esel und Kreuzungen (Equidae)",null,null,null,null,null,null,"Hungary",null,null,null,null,null,null,null,null,null,null,null,null,null,null,2033]
[null,"A14","Schweine (Sus scrofa domesticus)",null,"[A14] Schweine (Sus scrofa domesticus)",null,null,null,null,null,null,"Ireland",null,null,null,null,null,null,null,"Kombinierter Zweck"]
[null,"A15","Ziegen (Capra aegagrus hircus)",null,"[A15] Ziegen (Capra aegagrus hircus)",null,null,null,null,null,null,"Italy",null,null,null,null,null,null,{"$f":"EXACT(T16,[2]Translations!B2)","v":true},"[PB1] (Grundlagenforschung) Onkologie"]
[null,"A16","Schafe (Ovis aries)",null,"[A16] Schafe (Ovis aries)",null,null,null,null,null,null,"Latvia",null,null,null,null,null,null,{"$f":"EXACT(T17,[2]Translations!B3)","v":true},"[PB2] (Grundlagenforschung) Kardiovaskuläres System (Blut- und Lymphgefäße)"]
[null,"A17","Rinder (Bos taurus)",null,"[A17] Rinder (Bos taurus)",null,null,null,null,null,null,"Lithuania",null,null,null,null,null,null,{"$f":"EXACT(T18,[2]Translations!B4)","v":true},"[PB3] (Grundlagenforschung) Nervensystem"]
[null,"A18","Halbaffen (Prosimia)",null,"[A18] Halbaffen (Prosimia)",null,null,null,null,null,null,"Luxembourg",null,null,null,null,null,null,{"$f":"EXACT(T19,[2]Translations!B5)","v":true},"[PB4] (Grundlagenforschung) Atmungssystem"]
[null,"A19","Marmosetten und Tamarine (spp., z.B. Callithrix jacchus)",null,"[A19] Marmosetten und Tamarine (spp., z.B. Callithrix jacchus)",null,null,null,null,null,null,"Malta",null,null,null,null,null,null,{"$f":"EXACT(T20,[2]Translations!B6)","v":true},"[PB5] (Grundlagenforschung) Gastrointestinales System, einschließlich Leber"]
[null,"A20","Javaneraffen (Macaca fascicularis)",null,"[A20] Javaneraffen (Macaca fascicularis)",null,null,null,null,null,null,"Netherlands",null,null,null,null,null,null,{"$f":"EXACT(T21,[2]Translations!B7)","v":true},"[PB6] (Grundlagenforschung) Muskuloskelettales System"]
[null,"A21","Rhesusaffen (Macaca mulatta)",null,"[A21] Rhesusaffen (Macaca mulatta)",null,null,null,null,null,null,"Poland",null,null,null,null,null,null,{"$f":"EXACT(T22,[2]Translations!B8)","v":true},"[PB7] (Grundlagenforschung) Immunsystem"]
[null,"A22","Grüne Meerkatzen (Chlorocebus spp., in der Regel pygerythrus oder sabaeus)",null,"[A22] Grüne Meerkatzen (Chlorocebus spp., in der Regel pygerythrus oder sabaeus)",null,null,null,null,null,null,"Portugal",null,null,null,null,null,null,{"$f":"EXACT(T23,[2]Translations!B9)","v":true},"[PB8] (Grundlagenforschung) Urogenitales System/Fortpflanzungssystem"]
[null,"A23","Paviane (Papio spp.)",null,"[A23] Paviane (Papio spp.)",null,null,null,null,null,null,"Romania",null,null,null,null,null,null,{"$f":"EXACT(T24,[2]Translations!B10)","v":true},"[PB9] (Grundlagenforschung) Sinnesorgane (Haut, Augen und Ohren)"]
[null,"A24","Totenkopfaffen (spp., z.B. Saimiri sciureus)",null,"[A24] Totenkopfaffen (spp., z.B. Saimiri sciureus)",null,null,null,null,null,null,"Slovakia",null,null,null,null,null,null,{"$f":"EXACT(T25,[2]Translations!B11)","v":true},"[PB10] (Grundlagenforschung) Endokrines System/Stoffwechsel"]
[null,"A25-1","Andere Arten von Altweltaffen (andere Cercopithecoidea)",null,"[A25-1] Andere Arten von Altweltaffen (andere Cercopithecoidea)",null,null,null,null,null,null,"Slovenia",null,null,null,null,null,null,{"$f":"EXACT(T26,[2]Translations!B12)","v":true},"[PB14] (Grundlagenforschung) Entwicklungsbiologie"]
[null,"A25-2","Andere Arten von Neuweltaffen (andere Ceboidea)",null,"[A25-2] Andere Arten von Neuweltaffen (andere Ceboidea)",null,null,null,null,null,null,"Spain",null,null,null,null,null,null,{"$f":"EXACT(T27,[2]Translations!B13)","v":true},"[PB11] (Grundlagenforschung) Multisystemisch"]
[null,"A26","Menschenaffen (Hominoidea)",null,"[A26] Menschenaffen (Hominoidea)",null,null,null,null,null,null,"Sweden",null,null,null,null,null,null,{"$f":"EXACT(T28,[2]Translations!B14)","v":true},"[PB12] (Grundlagenforschung) Ethologie/Tierverhalten/Tierbiologie"]
[null,"A27","Andere Säugetiere (andere Mammalia)",null,"[A27] Andere Säugetiere (andere Mammalia)",null,null,null,null,null,null,null,null,null,null,null,null,null,{"$f":"EXACT(T29,[2]Translations!B15)","v":true},"[PB13] (Grundlagenforschung) Andere"]
[null,"A28","Haushühner (Gallus gallus domesticus)",null,"[A28] Haushühner (Gallus gallus domesticus)",null,null,null,null,null,null," ",null,null,null,null,null,null,{"$f":"EXACT(T30,[2]Translations!B16)","v":true},"[PT21] (Transl./angewandte Forschung) Krebserkrankungen des Menschen"]
[null,"A37","Truthühner (Meleagris gallopavo)",null,"[A37] Truthühner (Meleagris gallopavo)",null,null,null,null,null,null," ",null,null,null,null,null,null,{"$f":"EXACT(T31,[2]Translations!B17)","v":true},"[PT22] (Transl./angewandte Forschung) Infektionskrankheiten des Menschen"]
[null,"A29","Andere Vögel (andere Aves)",null,"[A29] Andere Vögel (andere Aves)",null,null,null,null,null,null," ",null,null,null,null,null,null,{"$f":"EXACT(T32,[2]Translations!B18)","v":true},"[PT23] (Transl./angewandte Forschung) Kardiovaskuläre Erkrankung des Menschen"]
[null,"A30","Reptilien (Reptilia)",null,"[A30] Reptilien (Reptilia)",null,null,null,null,null,null," ",null,null,null,null,null,null,{"$f":"EXACT(T33,[2]Translations!B19)","v":true},"[PT24] (Transl./angewandte Forschung) Nerven- und Geisteserkrankungen des Menschen"]
[null,"A31","Frösche (Rana temporaria und Rana pipiens)",null,"[A31] Frösche (Rana temporaria und Rana pipiens)",null,null,null,null,null,null," ",null,null,null,null,null,null,{"$f":"EXACT(T34,[2]Translations!B20)","v":true},"[PT25] (Transl./angewandte Forschung) Atemwegserkrankungen des Menschen"]
[null,"A32","Krallenfrösche (Xenopus laevis und Xenopus tropicalis)",null,"[A32] Krallenfrösche (Xenopus laevis und Xenopus tropicalis)",null,null,null,null,null,null," ",null,null,null,null,null,null,{"$f":"EXACT(T35,[2]Translations!B21)","v":true},"[PT26] (Transl./angewandte Forschung) Gastrointestinale Erkrankung des Menschen, einschließlich der Leber"]
[null,"A33","Andere Amphibien (andere Amphibia)",null,"[A33] Andere Amphibien (andere Amphibia)",null,null,null,null,null,null," ",null,null,null,null,null,null,{"$f":"EXACT(T36,[2]Translations!B22)","v":true},"[PT27] (Transl./angewandte Forschung) Muskuloskelettale Erkrankung des Menschen"]
[null,"A34","Zebrafische (Danio rerio)",null,"[A34] Zebrafische (Danio rerio)",null,null,null,null,null,null," ",null,null,null,null,null,null,{"$f":"EXACT(T37,[2]Translations!B23)","v":true},"[PT28] (Transl./angewandte Forschung) Immunerkrankungen des Menschen"]
[null,"A38","Wolfsbarsche (spp., z.B. Serranidae, Moronidae)",null,"[A38] Wolfsbarsche (spp., z.B. Serranidae, Moronidae)",null,null,null,null,null,null," ",null,null,null,null,null,null,{"$f":"EXACT(T38,[2]Translations!B24)","v":true},"[PT29] (Transl./angewandte Forschung) Erkrankungen des urogenitalen/des Fortpflanzungssystems des Menschen"]
[null,"A39","Lachse, Forellen, Saiblinge und Äschen (Salmonidae)",null,"[A39] Lachse, Forellen, Saiblinge und Äschen (Salmonidae)",null,null,null,null,null,null," ",null,null,null,null,null,null,{"$f":"EXACT(T39,[2]Translations!B25)","v":true},"[PT30] (Transl./angewandte Forschung) Erkrankungen der Sinnesorgane des Menschen (Haut, Augen und Ohren)"]
[null,"A40","Guppys, Schwertträger, Spitzmaulkärpflinge, Spiegelkärpflinge (Poeciliidae)",null,"[A40] Guppys, Schwertträger, Spitzmaulkärpflinge, Spiegelkärpflinge (Poeciliidae)",null,null,null,null,null,null," ",null,null,null,null,null,null,{"$f":"EXACT(T40,[2]Translations!B26)","v":true},"[PT31] (Transl./angewandte Forschung) Erkrankungen des endokrinen Systems/des Stoffwechselsystems des Menschen"]
[null,"A35","Andere Fische (andere Pisces)",null,"[A35] Andere Fische (andere Pisces)",null,null,null,null,null,null," ",null,null,null,null,null,null,{"$f":"EXACT(T41,[2]Translations!B27)","v":true},"[PT32] (Transl./angewandte Forschung) Andere Humanerkrankungen"]
[null,"A36","Kopffüßer (Cephalopoda)",null,"[A36] Kopffüßer (Cephalopoda)",null,null,null,null,null,null," ",null,null,null,null,null,null,{"$f":"EXACT(T42,[2]Translations!B28)","v":true},"[PT33] (Transl./angewandte Forschung) Tiererkrankungen und - krankheiten"]
[null," ",null,null,null,null,null,null,null,null,null," ",null,null,null,null,null,null,{"$f":"EXACT(T43,[2]Translations!B29)","v":true},"[PT38] (Transl./angewandte Forschung) Tierernährung"]
[null," ",null,null,null,null,null,null,null,null,null," ",null,null,null,null,null,null,{"$f":"EXACT(T44,[2]Translations!B30)","v":true},"[PT34] (Transl./angewandte Forschung) Tierschutz"]
[null," ",null,null,null,null,null,null,null,null,null," ",null,null,null,null,null,null,{"$f":"EXACT(T45,[2]Translations!B31)","v":true},"[PT35] (Transl./angewandte Forschung) Krankheitsdiagnose"]
[null," ",null,null,null,null,null,null,null,null,null," ",null,null,null,null,null,null,{"$f":"EXACT(T46,[2]Translations!B32)","v":true},"[PT36] (Transl./angewandte Forschung) Pflanzenkrankheiten"]
[null," ",null,null,null,null,null,null,null,null,null," ",null,null,null,null,null,null,{"$f":"EXACT(T47,[2]Translations!B33)","v":true},"[PT37] (Transl./angewandte Forschung) Nicht regulatorische Toxikologie und Ökotoxikologie"]
[null," ",null,null,null,null,null,null,null,null,null," ",null,null,null,null,null,null,{"$f":"EXACT(T48,[2]Translations!B34)","v":true},"[PE40] Schutz der natürlichen Umwelt im Interesse der Gesundheit oder des Wohlbefindens von Menschen und Tieren"]
[null," ",null,null,null,null,null,null,null,null,null," ",null,null,null,null,null,null,{"$f":"EXACT(T49,[2]Translations!B35)","v":true},"[PS41] Erhaltung der Art"]
[null," ",null,null,null,null,null,null,null,null,null," ",null,null,null,null,null,null,{"$f":"EXACT(T50,[2]Translations!B36)","v":true},"[PE42-1] Hochschulausbildung"]
[null," ",null,null,null,null,null,null,null,null,null," ",null,null,null,null,null,null,{"$f":"EXACT(T51,[2]Translations!B37)","v":true},"[PE42-2] Schulung zum Erwerb, zur Erhaltung oder zur Verbesserung beruflicher Fähigkeiten"]
[null," ",null,null,null,null,null,null,null,null,null," ",null,null,null,null,null,null,{"$f":"EXACT(T52,[2]Translations!B38)","v":true},"[PF43] Forensische Untersuchungen"]
[null," ",null,null,null,null,null,null,null,null,null," ",null,null,null,null,null,null,{"$f":"EXACT(T53,[2]Translations!B39)","v":true},"[PG43] Erhaltung von Kolonien etablierter genetisch veränderter Tiere, die nicht in anderen Verfahren verwendet werden"]
[null," ",null,null,null,null,null,null,null,null,null," ",null,null,null,null,null,null,{"$f":"EXACT(T54,[2]Translations!B40)","v":true},"[PR51] (Routineproduktion) Produkte auf Blutbasis"]
[null," ",null,null,null,null,null,null,null,null,null," ",null,null,null,null,null,null,{"$f":"EXACT(T55,[2]Translations!B41)","v":true},"[PR52] (Routineproduktion) Monoklonale Antikörper nur im Aszites-Verfahren"]
[null," ",null,null,null,null,null,null,null,null,null," ",null,null,null,null,null,null,{"$f":"EXACT(T56,[2]Translations!B42)","v":true},"[PR54] (Routineproduktion) Monoklonale und polyklonale Antikörper (ausgenommen im Aszites-Verfahren)"]
[null," ",null,null,null,null,null,null,null,null,null," ",null,null,null,null,null,null,{"$f":"EXACT(T57,[2]Translations!B43)","v":true},"[PR53] (Routineproduktion) Andere Produkte"]
[null," ",null,null,null,null,null,null,null,null,null," ",null,null,null,null,null,null,{"$f":"EXACT(T58,[2]Translations!B44)","v":true},"[PR61] (Regulatorische Zwecke/ Qualitätskontrolle) Chargenunbedenklichkeitsprüfungen"]
[null," ",null,null,null,null,null,null,null,null,null," ",null,null,null,null,null,null,{"$f":"EXACT(T59,[2]Translations!B45)","v":true},"[PR62] (Regulatorische Zwecke/ Qualitätskontrolle) Pyrogenitätsprüfungen"]
[null," ",null,null,null,null,null,null,null,null,null," ",null,null,null,null,null,null,{"$f":"EXACT(T60,[2]Translations!B46)","v":true},"[PR63] (Regulatorische Zwecke/ Qualitätskontrolle) Chargenpotenzprüfungen"]
[null," ",null,null,null,null,null,null,null,null,null," ",null,null,null,null,null,null,{"$f":"EXACT(T61,[2]Translations!B47)","v":true},"[PR64] (Regulatorische Zwecke/ Qualitätskontrolle) Andere Qualitätskontrollen"]
[null," ",null,null,null,null,null,null,null,null,null," ",null,null,null,null,null,null,{"$f":"EXACT(T62,[2]Translations!B48)","v":true},"[PR71] (Regulatorische Zwecke) Andere Wirksamkeits- und Toleranzprüfungen"]
[null," ",null,null,null,null,null,null,null,null,null," ",null,null,null,null,null,null,{"$f":"EXACT(T63,[2]Translations!B49)","v":true},"[PR81] (Regulatorische Zwecke/Toxizität und Andere../Akute Toxizität) LD50, LC50"]
[null," ",null,null,null,null,null,null,null,null,null," ",null,null,null,null,null,null,{"$f":"EXACT(T64,[2]Translations!B50)","v":true},"[PR82] (Regulatorische Zwecke/Toxizität und Andere../Akute Toxizität) Andere letale Methoden"]
[null," ",null,null,null,null,null,null,null,null,null," ",null,null,null,null,null,null,{"$f":"EXACT(T65,[2]Translations!B51)","v":true},"[PR83] (Regulatorische Zwecke/Toxizität und Andere../Akute Toxizität) Nichtletale Methoden"]
[null," ",null,null,null,null,null,null,null,null,null," ",null,null,null,null,null,null,{"$f":"EXACT(T66,[2]Translations!B52)","v":true},"[PR84] (Regulatorische Zwecke/Toxizität und Andere..) Hautreizung/-verätzung"]
[null," ",null,null,null,null,null,null,null,null,null," ",null,null,null,null,null,null,{"$f":"EXACT(T67,[2]Translations!B53)","v":true},"[PR85] (Regulatorische Zwecke/Toxizität und Andere..) Sensibilisierung der Haut"]
[null," ",null,null,null,null,null,null,null,null,null," ",null,null,null,null,null,null,{"$f":"EXACT(T68,[2]Translations!B54)","v":true},"[PR86] (Regulatorische Zwecke/Toxizität und Andere..) Augenreizung/-verätzung"]
[null," ",null,null,null,null,null,null,null,null,null," ",null,null,null,null,null,null,{"$f":"EXACT(T69,[2]Translations!B55)","v":true},"[PR87] (Regulatorische Zwecke/Toxizität und Andere../Toxizität bei wiederholter Verabreichung) Bis zu 28 Tage"]
[null," ",null,null,null,null,null,null,null,null,null," ",null,null,null,null,null,null,{"$f":"EXACT(T70,[2]Translations!B56)","v":true},"[PR88] (Regulatorische Zwecke/Toxizität und Andere../Toxizität bei wiederholter Verabreichung) 29 - 90 Tage"]
[null," ",null,null,null,null,null,null,null,null,null," ",null,null,null,null,null,null,{"$f":"EXACT(T71,[2]Translations!B57)","v":true},"[PR89] (Regulatorische Zwecke/Toxizität und Andere../Toxizität bei wiederholter Verabreichung) mehr als 90 Tage"]
[null," ",null,null,null,null,null,null,null,null,null," ",null,null,null,null,null,null,{"$f":"EXACT(T72,[2]Translations!B58)","v":true},"[PR90] (Regulatorische Zwecke/Toxizität und Andere..) Kanzerogenität"]
[null," ",null,null,null,null,null,null,null,null,null," ",null,null,null,null,null,null,{"$f":"EXACT(T73,[2]Translations!B59)","v":true},"[PR91] (Regulatorische Zwecke/Toxizität und Andere..) Genotoxizität"]
[null," ",null,null,null,null,null,null,null,null,null," ",null,null,null,null,null,null,{"$f":"EXACT(T74,[2]Translations!B60)","v":true},"[PR92] (Regulatorische Zwecke/Toxizität und Andere..) Reproduktionstoxizität"]
[null," ",null,null,null,null,null,null,null,null,null," ",null,null,null,null,null,null,{"$f":"EXACT(T75,[2]Translations!B61)","v":true},"[PR93] (Regulatorische Zwecke/Toxizität und Andere..) Entwicklungstoxizität"]
[null," ",null,null,null,null,null,null,null,null,null," ",null,null,null,null,null,null,{"$f":"EXACT(T76,[2]Translations!B62)","v":true},"[PR94] (Regulatorische Zwecke/Toxizität und Andere..) Neurotoxizität"]
[null," ",null,null,null,null,null,null,null,null,null,null,null,null,null,null,null,null,{"$f":"EXACT(T77,[2]Translations!B63)","v":true},"[PR95] (Regulatorische Zwecke/Toxizität und Andere..) Kinetik (Pharmakokinetik, Toxikokinetik, Rückstandsabbau)"]
[null," ",null,null,null,null,null,null,null,null,null,null,null,null,null,null,null,null,{"$f":"EXACT(T78,[2]Translations!B64)","v":true},"[PR96] (Regulatorische Zwecke/Toxizität und Andere..) Pharmakodynamik (einschließlich Sicherheitspharmakologie)"]
[null," ",null,null,null,null,null,null,null,null,null,null,null,null,null,null,null,null,{"$f":"EXACT(T79,[2]Translations!B65)","v":true},"[PR97] (Regulatorische Zwecke/Toxizität und Andere..) Fototoxizität"]
[null,null,null,null,null,null,null,null,null,null,null,null,null,null,null,null,null,null,{"$f":"EXACT(T80,[2]Translations!B66)","v":true},"[PR98] (Regulatorische Zwecke/Toxizität und Andere../Ökotoxizität) Akute Toxizität (Ökotoxizität)"]
[null,null,null,null,null,null,null,null,null,null,null,null,null,null,null,null,null,null,{"$f":"EXACT(T81,[2]Translations!B67)","v":true},"[PR99] (Regulatorische Zwecke/Toxizität und Andere../Ökotoxizität) Chronische Toxizität (Ökotoxizität)"]
[null,null,null,null,null,null,null,null,null,null,null,null,null,null,null,null,null,null,{"$f":"EXACT(T82,[2]Translations!B68)","v":true},"[PR100] (Regulatorische Zwecke/Toxizität und Andere../Ökotoxizität) Reproduktionstoxizität (Ökotoxizität)"]
[null,null,null,null,null,null,null,null,null,null,null,null,null,null,null,null,null,null,{"$f":"EXACT(T83,[2]Translations!B69)","v":true},"[PR101] (Regulatorische Zwecke/Toxizität und Andere../Ökotoxizität) Endokrine Wirkung (Ökotoxizität)"]
[null,null,null,null,null,null,null,null,null,null,null,null,null,null,null,null,null,null,{"$f":"EXACT(T84,[2]Translations!B70)","v":true},"[PR102] (Regulatorische Zwecke/Toxizität und Andere../Ökotoxizität) Bioakkumulation (Ökotoxizität)"]
[null,null,null,null,null,null,null,null,null,null,null,null,null,null,null,null,null,null,{"$f":"EXACT(T85,[2]Translations!B71)","v":true},"[PR103] (Regulatorische Zwecke/Toxizität und Andere../Ökotoxizität) Andere Ökotoxizität"]
[null,null,null,null,null,null,null,null,null,null,null,null,null,null,null,null,null,null,{"$f":"EXACT(T86,[2]Translations!B72)","v":true},"[PR104] (Regulatorische Zwecke/Toxizität und Andere..) Unbedenklichkeitsprüfung von Nahrungs- und Futtermitteln"]
[null,null,null,null,null,null,null,null,null,null,null,null,null,null,null,null,null,null,{"$f":"EXACT(T87,[2]Translations!B73)","v":true},"[PR105] (Regulatorische Zwecke/Toxizität und Andere..) Unbedenklichkeit für Zieltiere"]
[null,null,null,null,null,null,null,null,null,null,null,null,null,null,null,null,null,null,{"$f":"EXACT(T88,[2]Translations!B74)","v":true},"[PR107] (Regulatorische Zwecke/Toxizität und Andere..) Kombinierte Endpunkte"]
[null,null,null,null,null,null,null,null,null,null,null,null,null,null,null,null,null,null,{"$f":"EXACT(T89,[2]Translations!B75)","v":true},"[PR106] (Regulatorische Zwecke/Toxizität und Andere..) Andere Toxizitäts- oder Unbedenklichkeitsprüfungen"]

{"sheet":"Refinement der Genotypisierung","index":3,"n_rows":2,"n_cols":1,"rows_kept":2,"cut":false,"hidden":false,"merged":[]}
[{"$f":"label_efforts_made_to_refine2","v":"Informationen zu Verbesserungen (Refinement) der Methoden zur Genotypsierung, insbesondere bei Gewebeproben"}]
["Falls Sie Genotypisierungen melden, beschreiben Sie hier bitte, inwiefern Sie Bestrebungen unternommen haben, die Methode(n) der Genotypisierungen zu verbessern (Refinement)"]

{"sheet":"Validierung","index":4,"n_rows":8,"n_cols":2,"rows_kept":8,"cut":false,"hidden":false,"merged":[[2,1,5,6],[7,1,10,6]]}
[]
[]
[null,"Um eine Vorab-Validierung der Daten durchzuführen, klicken Sie bitte \"Validieren\". Sie müssen diese Funktion erneut ausführen, wenn Sie Änderungen an der Tabelle vornehmen."]
[]
[]
[]
[]
[null,"Die Funktion färbt fehlende oder widersprüchliche Angaben rot ein."]